bitfinex-derivatives/quotes_BTCF0:USTF0_20250830
["timestamp","ask_amount","ask_price","bid_price","bid_amount"]
[1756527825573,0.3540248,108580.0,108570.0,0.7828148]
[1756527825871,0.3540248,108580.0,108570.0,0.7838148]
[1756527826068,0.3540248,108580.0,108570.0,0.7828148]
[1756527826264,1.19848,108590.0,108580.0,0.06388]
[1756527826466,1.57625792,108590.0,108580.0,0.02587]
[1756527826860,1.57625792,108590.0,108580.0,0.3798948]
[1756527827064,1.57625792,108590.0,108580.0,0.4179048]
[1756527828476,0.73857792,108590.0,108580.0,0.4179048]
[1756527828677,0.73857792,108590.0,108580.0,0.06388]
[1756527828875,1.57625792,108590.0,108580.0,0.06388]
[1756527830478,1.57625792,108590.0,108580.0,0.4179048]
[1756527832175,0.73857792,108590.0,108580.0,0.4179048]
[1756527832373,1.57621792,108590.0,108580.0,0.4179048]
[1756527834674,0.38455312,108590.0,108580.0,0.4179048]
[1756527834977,1.21541792,108590.0,108580.0,0.4179048]
[1756527835578,0.37777792,108590.0,108580.0,0.4179048]
[1756527839777,0.37777792,108590.0,108580.0,0.06388]
[1756527839984,0.37777792,108590.0,108580.0,0.4179048]
[1756527840375,1.21541792,108590.0,108580.0,0.4179048]
[1756527840576,0.37777792,108590.0,108580.0,0.4179048]
[1756527842883,0.02375312,108590.0,108580.0,0.4179048]
[1756527843082,0.37777792,108590.0,108580.0,0.4179048]
[1756527844387,0.37777792,108590.0,108580.0,0.7719296]
[1756527844781,0.02375312,108590.0,108580.0,0.7719296]
[1756527844985,0.02375312,108590.0,108580.0,1.3827296]
[1756527845188,1.1916648,108600.0,108590.0,0.04136]
[1756527845389,1.21542426,108600.0,108590.0,0.4213448]
[1756527846482,1.21542426,108600.0,108590.0,0.4223448]
[1756527848078,1.21542426,108600.0,108590.0,0.4233448]
[1756527850089,1.21542426,108600.0,108590.0,0.7841448]
[1756527850090,0.86139946,108600.0,108590.0,0.7841448]
[1756527850292,1.21542426,108600.0,108590.0,0.7841448]
[1756527850892,0.02375946,108600.0,108590.0,0.7841448]
[1756527851089,1.5523848,108610.0,108590.0,0.7841448]
[1756527851295,1.22210256,108610.0,108600.0,0.4213448]
[1756527851496,1.57612736,108610.0,108600.0,0.4213448]
[1756527851786,1.57612736,108610.0,108600.0,0.7753696]
[1756527851787,0.02374256,108610.0,108600.0,0.7753696]
[1756527851992,0.02374256,108610.0,108600.0,1.1361696]
[1756527852187,0.37776736,108610.0,108600.0,0.7821448]
[1756527852393,0.02374256,108610.0,108600.0,1.1361696]
[1756527852588,0.37776736,108610.0,108600.0,1.1361696]
[1756527853088,0.3540248,108610.0,108600.0,1.1361696]
[1756527853293,0.18361269,108610.0,108600.0,1.1361696]
[1756527853892,1.67279709,108620.0,108610.0,0.06732]
[1756527854094,2.02682189,108620.0,108610.0,0.06732]
[1756527854295,2.02682189,108620.0,108610.0,0.4213448]
[1756527854593,0.95797229,108620.0,108610.0,0.4213448]
[1756527854793,1.31199709,108620.0,108610.0,0.4213448]
[1756527855187,1.31299709,108620.0,108610.0,0.4213448]
[1756527856794,0.47547709,108620.0,108610.0,0.4213448]
[1756527857094,0.12145229,108620.0,108610.0,0.4213448]
[1756527857388,0.47547709,108620.0,108610.0,0.4213448]
[1756527858697,1.19030189,108620.0,108610.0,0.3799848]
[1756527858896,1.19030189,108620.0,108610.0,0.02596]
[1756527858897,0.83627709,108620.0,108610.0,0.02596]
[1756527859096,0.83627709,108620.0,108610.0,0.06732]
[1756527859397,0.83627709,108620.0,108610.0,0.4213448]
[1756527862392,0.47547709,108620.0,108610.0,0.4213448]
[1756527863391,0.12145229,108620.0,108610.0,0.4213448]
[1756527866191,0.12145229,108620.0,108610.0,1.0253696]
[1756527866398,0.12145229,108620.0,108610.0,1.3861696]
[1756527867302,0.12145229,108620.0,108610.0,2.2235296]
[1756527871093,0.3608,108640.0,108610.0,2.5775544]
[1756527871292,0.06694357,108640.0,108630.0,0.4197948]
[1756527871499,0.06694357,108640.0,108630.0,0.7738196]
[1756527871698,0.06694357,108640.0,108630.0,0.7805948]
[1756527871904,0.06694357,108640.0,108630.0,0.4197948]
[1756527872404,0.06794357,108640.0,108630.0,0.4197948]
[1756527873303,0.06794357,108640.0,108630.0,1.1346196]
[1756527873707,0.06694357,108640.0,108630.0,0.7805948]
[1756527873899,0.06794357,108640.0,108630.0,0.7805948]
[1756527874503,0.06794357,108640.0,108630.0,1.1346196]
[1756527875002,0.14027826,108640.0,108630.0,1.1346196]
[1756527875195,0.0441,108640.0,108630.0,1.1346196]
[1756527877209,0.02561,108640.0,108630.0,1.1346196]
[1756527877509,0.02565829,108640.0,108630.0,1.3846196]
[1756527877711,0.02565829,108640.0,108630.0,1.1346196]
[1756527877902,0.02565829,108640.0,108630.0,1.9717796]
[1756527878212,0.02565829,108640.0,108630.0,1.1346196]
[1756527878502,0.02565829,108640.0,108630.0,1.9717796]
[1756527879108,0.09783088,108640.0,108630.0,1.9717796]
[1756527879405,0.09783088,108640.0,108630.0,1.97054246]
[1756527880411,0.09783088,108640.0,108630.0,1.97050246]
[1756527884419,0.02565829,108640.0,108630.0,1.97050246]
[1756527884613,0.4039,108660.0,108650.0,0.02493]
[1756527884914,0.06663663,108660.0,108650.0,0.41917623]
[1756527885317,0.11001737,108660.0,108650.0,1.25625623]
[1756527885710,0.06691737,108660.0,108650.0,1.25625623]
[1756527886520,0.06691737,108660.0,108650.0,0.41917623]
[1756527886817,0.06691737,108660.0,108650.0,1.25621623]
[1756527887405,0.06691737,108660.0,108650.0,0.41917623]
[1756527887610,0.06691737,108660.0,108650.0,1.25621623]
[1756527888610,0.06691737,108660.0,108650.0,1.61701623]
[1756527888807,0.04338074,108660.0,108650.0,1.61701623]
[1756527889011,0.43589678,108670.0,108650.0,1.61701623]
[1756527889212,0.5040396,108670.0,108660.0,0.41917623]
[1756527889619,0.5286496,108670.0,108660.0,0.41917623]
[1756527890120,0.1432396,108670.0,108660.0,1.13338246]
[1756527890315,0.11971522,108670.0,108660.0,1.13338246]
[1756527890519,0.02461,108670.0,108660.0,1.61697623]
[1756527890721,1.02624623,108670.0,108660.0,0.06577]
[1756527890920,0.335558,108670.0,108660.0,0.06577]
[1756527891115,0.335558,108670.0,108660.0,0.41917623]
[1756527891513,0.085558,108670.0,108660.0,0.41917623]
[1756527891710,0.085558,108670.0,108660.0,0.77997623]
[1756527892718,0.1293582,108670.0,108660.0,1.25613623]
[1756527893221,0.20133423,108670.0,108660.0,1.25613623]
[1756527895616,0.16390423,108670.0,108660.0,1.25613623]
[1756527899928,0.13929423,108670.0,108660.0,1.25613623]
[1756527901231,0.16390423,108670.0,108660.0,0.41917623]
[1756527901434,0.16390423,108670.0,108660.0,1.25601623]
[1756527901732,0.16390423,108670.0,108660.0,1.61681623]
[1756527901930,0.16390423,108670.0,108660.0,0.77997623]
[1756527902230,0.13929423,108670.0,108660.0,1.61681623]
[1756527904536,0.20400423,108670.0,108660.0,1.26461]
[1756527904833,0.16587423,108670.0,108660.0,1.25721623]
[1756527905224,0.16587423,108670.0,108660.0,1.61801623]
[1756527905425,0.16587423,108670.0,108660.0,1.97120292]
[1756527906226,0.16587423,108670.0,108660.0,1.97220292]
[1756527907236,0.13929423,108670.0,108660.0,1.97320292]
[1756527907738,0.13929423,108670.0,108660.0,1.97220292]
[1756527911137,0.13929423,108670.0,108660.0,1.26561]
[1756527911338,0.13929423,108670.0,108660.0,1.97220292]
[1756527914740,0.11577623,108670.0,108660.0,1.97220292]
[1756527914940,0.75222646,108690.0,108660.0,1.93136292]
[1756527915234,0.90222604,108690.0,108680.0,0.41739646]
[1756527915739,0.54892958,108690.0,108680.0,0.41739646]
[1756527915939,0.90222604,108690.0,108680.0,0.41739646]
[1756527917838,0.97516019,108690.0,108680.0,0.41739646]
[1756527918138,1.01943106,108690.0,108680.0,0.41739646]
[1756527918842,0.6661346,108690.0,108680.0,0.41739646]
[1756527919247,1.01943106,108690.0,108680.0,0.41739646]
[1756527919453,1.01943106,108690.0,108680.0,0.77069292]
[1756527919742,1.01943106,108690.0,108680.0,0.41739646]
[1756527925645,0.6661346,108690.0,108680.0,0.41739646]
[1756527925845,1.01943106,108690.0,108680.0,0.41739646]
[1756527927542,0.6661346,108690.0,108680.0,0.77069292]
[1756527927742,0.1672046,108690.0,108680.0,1.02069292]
[1756527928045,0.14378502,108690.0,108680.0,1.02069292]
[1756527928545,0.54271502,108690.0,108680.0,1.02069292]
[1756527928739,0.91943503,108690.0,108680.0,0.0651]
[1756527929236,1.75675503,108690.0,108680.0,0.02582]
[1756527929437,2.10675503,108690.0,108680.0,0.001]
[1756527929842,0.03813,108680.0,108660.0,1.23005646]
[1756527930040,0.38738,108670.0,108660.0,0.41739646]
[1756527930349,0.42551,108670.0,108660.0,0.41739646]
[1756527931049,0.42551,108670.0,108660.0,0.41939646]
[1756527931251,0.44893786,108670.0,108660.0,0.77369292]
[1756527931545,0.42551,108670.0,108660.0,0.77369292]
[1756527931736,0.44893796,108670.0,108660.0,0.77169292]
[1756527931940,0.42551,108670.0,108660.0,0.77369292]
[1756527933952,0.02658,108670.0,108660.0,0.77369292]
[1756527934251,0.06307,108670.0,108660.0,0.77369292]
[1756527935348,0.06307,108670.0,108660.0,0.42039264]
[1756527935548,0.42387,108670.0,108660.0,0.42039264]
[1756527940351,0.42387,108670.0,108660.0,0.0671]
[1756527940758,0.42387,108670.0,108660.0,0.42039264]
[1756527941255,0.42387,108670.0,108660.0,0.0671]
[1756527941558,0.42387,108670.0,108660.0,0.42039264]
[1756527943954,0.77716264,108670.0,108660.0,0.0671]
[1756527944160,0.42387,108670.0,108660.0,0.0671]
[1756527944657,0.42387,108670.0,108660.0,0.06637]
[1756527945054,0.42387,108670.0,108660.0,0.41966264]
[1756527945357,0.06307,108670.0,108660.0,0.41764264]
[1756527947558,0.02658,108670.0,108660.0,0.41764264]
[1756527948659,1.25983,108680.0,108670.0,0.06342]
[1756527948852,0.44561176,108680.0,108670.0,0.41671264]
[1756527949056,0.02342176,108680.0,108670.0,0.43565395]
[1756527949258,0.14210502,108690.0,108680.0,0.06342]
[1756527949557,0.14210502,108690.0,108680.0,0.41671264]
[1756527950165,0.16552432,108690.0,108680.0,0.41671264]
[1756527950363,0.16552331,108690.0,108680.0,0.41671264]
[1756527951252,0.14210502,108690.0,108680.0,0.41671264]
[1756527951458,0.14210502,108690.0,108680.0,0.77751264]
[1756527952058,0.11720502,108690.0,108680.0,1.02751264]
[1756527952258,0.39829,108700.0,108680.0,0.98840264]
[1756527952460,0.44660248,108700.0,108690.0,0.41671264]
[1756527952660,0.44660248,108700.0,108690.0,0.06342]
[1756527952855,0.42319,108700.0,108690.0,0.06342]
[1756527953060,0.42319,108700.0,108690.0,0.41671264]
[1756527953963,0.54451649,108700.0,108690.0,0.41671264]
[1756527962374,0.50802649,108700.0,108690.0,0.41671264]
[1756527962677,0.14722649,108700.0,108690.0,0.77751264]
[1756527964379,0.14722649,108700.0,108690.0,1.02851264]
[1756527964571,0.14722649,108700.0,108690.0,1.02951264]
[1756527965279,0.14722649,108700.0,108690.0,0.67622]
[1756527965475,0.14722649,108700.0,108690.0,1.02951264]
[1756527965783,0.14722649,108700.0,108690.0,1.38280528]
[1756527967976,0.12232649,108700.0,108690.0,2.22016528]
[1756527972285,0.32540334,108710.0,108690.0,2.18105528]
[1756527972480,0.42478434,108710.0,108700.0,0.41642264]
[1756527972686,0.496851,108710.0,108700.0,0.41642264]
[1756527974078,0.136051,108710.0,108700.0,0.41642264]
[1756527975277,0.136051,108710.0,108700.0,0.76929506]
[1756527976485,0.1824723,108710.0,108700.0,0.76929506]
[1756527978789,0.20585985,108710.0,108700.0,0.76929506]
[1756527978984,0.1824723,108710.0,108700.0,0.76929506]
[1756527980693,0.1458023,108710.0,108700.0,0.76929506]
[1756527980894,0.1458023,108710.0,108700.0,1.13009506]
[1756527981391,0.16919861,108710.0,108700.0,1.13009506]
[1756527981593,0.1458023,108710.0,108700.0,1.13009506]
[1756527981793,0.1824723,108710.0,108700.0,1.13009506]
[1756527982194,0.20586752,108710.0,108700.0,1.13009506]
[1756527982395,0.20586752,108710.0,108700.0,1.96769506]
[1756527982892,0.16919752,108710.0,108700.0,1.96769506]
[1756527983290,0.1210123,108710.0,108700.0,2.57077759]
[1756527983495,0.0464213,108710.0,108700.0,2.57077759]
[1756527983695,3.46322253,108730.0,108720.0,0.02365]
[1756527983894,1.38333514,108730.0,108720.0,0.41621253]
[1756527984096,1.73641767,108730.0,108720.0,0.41621253]
[1756527984496,1.7831027,108730.0,108720.0,0.41621253]
[1756527984787,0.55567017,108730.0,108720.0,0.06313]
[1756527984992,0.59234017,108730.0,108720.0,0.76929506]
[1756527985193,0.9454227,108730.0,108720.0,0.76929506]
[1756527985395,0.59234017,108730.0,108720.0,0.4161178]
[1756527986800,0.66613759,108730.0,108720.0,0.4161178]
[1756527992899,1.01912539,108730.0,108720.0,0.06313]
[1756527998110,1.01912539,108730.0,108720.0,0.4161178]
[1756527998111,1.50793759,108730.0,108720.0,0.4161178]
[1756528000916,1.50793759,108730.0,108720.0,0.06313]
[1756528001616,1.86092539,108730.0,108720.0,0.02365]
[1756528005312,1.86095965,108730.0,108720.0,0.37667206]
[1756528007618,1.86095965,108730.0,108710.0,0.03584]
[1756528007822,0.77472206,108720.0,108710.0,0.37828206]
[1756528008023,0.7981172,108720.0,108710.0,0.37828206]
[1756528008224,0.77472206,108720.0,108710.0,0.37828206]
[1756528008525,0.7979081,108720.0,108710.0,0.02526]
[1756528008717,0.7979081,108720.0,108710.0,0.41412206]
[1756528009223,0.44488604,108720.0,108710.0,0.41412206]
[1756528009524,1.6391481,108720.0,108710.0,0.43286159]
[1756528011018,0.44488604,108720.0,108710.0,0.43286159]
[1756528011222,1.6394681,108720.0,108710.0,0.43286159]
[1756528011422,1.28644604,108720.0,108710.0,0.43286159]
[1756528011612,1.6394681,108720.0,108710.0,0.43286159]
[1756528011818,1.28644604,108720.0,108710.0,0.43286159]
[1756528012014,1.6394681,108720.0,108710.0,0.43286159]
[1756528013216,1.28644604,108720.0,108710.0,0.43286159]
[1756528013417,1.6394681,108720.0,108710.0,0.43286159]
[1756528014026,1.6394681,108720.0,108710.0,0.39702159]
[1756528014619,1.6394681,108720.0,108710.0,0.43286159]
[1756528015520,1.6394681,108720.0,108710.0,0.37828206]
[1756528016028,1.6394681,108720.0,108710.0,0.41412206]
[1756528018025,0.4371081,108720.0,108710.0,0.41412206]
[1756528018228,0.92488604,108720.0,108710.0,0.41412206]
[1756528019329,0.92488604,108720.0,108710.0,0.41512206]
[1756528020125,0.92488604,108720.0,108710.0,0.41612206]
[1756528021329,0.9017,108720.0,108710.0,0.41512206]
[1756528022117,0.9017,108720.0,108710.0,0.41412206]
[1756528024824,0.9017,108720.0,108710.0,0.41512206]
[1756528025733,0.90106,108720.0,108710.0,0.41512206]
[1756528025932,0.90106,108720.0,108710.0,0.41412206]
[1756528026632,0.90106,108720.0,108710.0,0.41512206]
[1756528027333,0.90122,108720.0,108710.0,0.41512206]
[1756528027829,0.90122,108720.0,108710.0,0.41612206]
[1756528028933,0.0609,108720.0,108710.0,0.76914412]
[1756528029935,0.0609,108720.0,108710.0,1.12994412]
[1756528030930,0.79793658,108720.0,108710.0,0.002]
[1756528031129,0.79793658,108720.0,108710.0,0.35502206]
[1756528031435,0.79793658,108720.0,108710.0,0.37823206]
[1756528032136,0.79793658,108720.0,108710.0,0.41381206]
[1756528033439,0.79793658,108720.0,108710.0,0.41281206]
[1756528037437,0.08411452,108720.0,108710.0,0.41281206]
[1756528038138,0.04719452,108720.0,108710.0,0.41281206]
[1756528038335,0.04719452,108720.0,108710.0,0.77361206]
[1756528038541,0.04719452,108720.0,108710.0,0.41481206]
[1756528039038,0.04719452,108720.0,108710.0,0.77561206]
[1756528040640,0.04719452,108720.0,108710.0,0.77461206]
[1756528040846,0.02321452,108720.0,108710.0,0.77561206]
[1756528041843,0.02462,108720.0,108710.0,0.77561206]
[1756528042339,0.87165451,108730.0,108710.0,0.73903206]
[1756528042545,0.56646501,108730.0,108720.0,0.76583412]
[1756528042942,0.52911501,108730.0,108720.0,0.76583412]
[1756528043744,0.50449501,108730.0,108720.0,0.76583412]
[1756528043939,0.52911501,108730.0,108720.0,0.76683412]
[1756528044244,0.50449501,108730.0,108720.0,0.76683412]
[1756528044439,0.52911501,108730.0,108720.0,0.76683412]
[1756528044946,0.52911501,108730.0,108720.0,0.76783412]
[1756528045546,0.50449501,108730.0,108720.0,0.76783412]
[1756528045746,0.52911501,108730.0,108720.0,0.76783412]
[1756528046148,0.12048245,108730.0,108720.0,1.8424608]
[1756528046351,0.39815,108750.0,108720.0,1.8424608]
[1756528046651,0.4460687,108750.0,108740.0,0.76583412]
[1756528046945,0.79909076,108750.0,108740.0,0.76583412]
[1756528047251,0.4460687,108750.0,108740.0,0.76583412]
[1756528047851,0.4460687,108750.0,108740.0,0.76683412]
[1756528048148,0.4460687,108750.0,108740.0,0.06079]
[1756528048349,0.4460687,108750.0,108740.0,0.76583412]
[1756528049450,0.4460687,108750.0,108740.0,0.41262082]
[1756528049950,0.4460687,108750.0,108740.0,0.05979]
[1756528050152,0.4460687,108750.0,108740.0,0.41262082]
[1756528050352,0.49138807,108750.0,108740.0,0.05979]
[1756528050540,0.84421889,108750.0,108740.0,0.05979]
[1756528050947,0.91709068,108750.0,108740.0,0.05979]
[1756528051251,0.56425986,108750.0,108740.0,0.05979]
[1756528053650,0.56425986,108750.0,108740.0,0.41262082]
[1756528054456,0.56425986,108750.0,108740.0,0.43140616]
[1756528055760,0.14148986,108750.0,108740.0,1.39503698]
[1756528056054,0.11819116,108750.0,108740.0,1.04220616]
[1756528056258,1.20448,108770.0,108740.0,1.04220616]
[1756528056462,0.05956,108760.0,108750.0,0.41423082]
[1756528059165,0.10597909,108760.0,108750.0,0.41423082]
[1756528061063,0.18033721,108760.0,108750.0,0.41423082]
[1756528061264,0.05956,108760.0,108750.0,0.41423082]
[1756528061962,0.05956,108760.0,108750.0,0.0614]
[1756528062163,0.05956,108760.0,108750.0,0.41423082]
[1756528062362,0.10555111,108760.0,108750.0,0.41423082]
[1756528062957,0.10555111,108760.0,108750.0,0.0614]
[1756528063161,0.10555111,108760.0,108750.0,0.41423082]
[1756528064461,0.10555111,108760.0,108750.0,0.02335]
[1756528064462,0.81918193,108760.0,108750.0,0.02335]
[1756528064655,1.06918193,108760.0,108750.0,0.02335]
[1756528064862,1.06918193,108760.0,108740.0,0.03805]
[1756528065165,0.81918193,108760.0,108740.0,0.03805]
[1756528065761,1.71683082,108750.0,108740.0,0.02335]
[1756528065960,0.05956,108740.0,108730.0,0.0614]
[1756528066162,0.77319082,108740.0,108730.0,0.0614]
[1756528066364,0.42036,108740.0,108730.0,0.0614]
[1756528066665,0.42036,108740.0,108730.0,0.41423082]
[1756528066869,0.05956,108740.0,108730.0,0.77503082]
[1756528067255,0.05956,108740.0,108730.0,0.41423082]
[1756528067461,0.42036,108740.0,108730.0,0.41423082]
[1756528067969,0.05956,108740.0,108730.0,0.41423082]
[1756528070659,0.02325,108740.0,108730.0,0.41423082]
[1756528070870,0.02325,108740.0,108730.0,0.77503082]
[1756528071366,0.05956,108740.0,108730.0,0.77503082]
[1756528072667,1.22024,108750.0,108740.0,0.0614]
[1756528072860,1.24348698,108750.0,108740.0,0.41423082]
[1756528073368,1.8463178,108750.0,108740.0,0.02335]
[1756528073564,1.9463178,108750.0,108730.0,0.39088082]
[1756528073764,0.77319082,108740.0,108730.0,0.02335]
[1756528074068,0.7964378,108740.0,108730.0,0.02335]
[1756528074266,1.0464378,108740.0,108730.0,0.02335]
[1756528076162,1.0464378,108740.0,108720.0,0.25246141]
[1756528076365,0.05956,108720.0,108710.0,0.39465519]
[1756528076769,0.05956,108720.0,108710.0,0.75545519]
[1756528077860,0.02325,108720.0,108710.0,0.75545519]
[1756528078260,0.02325,108720.0,108710.0,0.79350519]
[1756528078466,0.02325,108720.0,108710.0,0.79450519]
[1756528079369,0.02325,108720.0,108710.0,0.79550519]
[1756528079770,0.02325,108720.0,108710.0,1.63922519]
[1756528086275,0.39711,108730.0,108720.0,0.06001]
[1756528086276,0.42049,108730.0,108720.0,0.06001]
[1756528086571,0.42049,108730.0,108720.0,0.41284082]
[1756528087675,0.05969,108730.0,108720.0,0.41284082]
[1756528088371,1.42098272,108740.0,108720.0,0.73701082]
[1756528088576,1.46747541,108740.0,108730.0,0.06001]
[1756528090176,1.46747541,108740.0,108730.0,0.02338]
[1756528090377,1.50439541,108740.0,108730.0,0.06001]
[1756528091171,1.15156459,108740.0,108730.0,0.06001]
[1756528091376,1.50439541,108740.0,108730.0,0.06001]
[1756528092775,1.15156459,108740.0,108730.0,0.06001]
[1756528092976,1.50439541,108740.0,108730.0,0.06001]
[1756528093477,0.66107541,108740.0,108730.0,0.06001]
[1756528093778,1.50403541,108740.0,108730.0,0.06001]
[1756528100382,0.30824459,108740.0,108730.0,0.41284082]
[1756528100582,1.15040459,108740.0,108730.0,0.41284082]
[1756528100783,1.15032459,108740.0,108730.0,0.66284082]
[1756528101077,0.90238,108740.0,108730.0,1.02364082]
[1756528101581,0.92554595,108740.0,108730.0,1.02364082]
[1756528101777,0.90238,108740.0,108730.0,1.02364082]
[1756528101977,0.92554577,108740.0,108730.0,1.02564082]
[1756528103778,0.08346577,108740.0,108730.0,1.02564082]
[1756528104080,0.0603,108740.0,108730.0,1.02564082]
[1756528104779,0.02338,108740.0,108730.0,1.02464082]
[1756528104981,0.02338,108740.0,108730.0,1.02564082]
[1756528105183,0.02338,108740.0,108730.0,1.02864082]
[1756528108791,0.02338,108740.0,108730.0,1.86976082]
[1756528110393,0.87836,108750.0,108730.0,1.86976082]
[1756528110596,0.90174,108750.0,108740.0,0.77364082]
[1756528112801,0.90174,108750.0,108740.0,0.77464082]
[1756528113499,0.0603,108750.0,108740.0,0.77464082]
[1756528113693,0.9009,108750.0,108740.0,0.77464082]
[1756528113900,0.9009,108750.0,108740.0,0.77564082]
[1756528115489,0.90086,108750.0,108740.0,0.77564082]
[1756528120407,0.0603,108750.0,108740.0,0.77564082]
[1756528120606,0.90014,108750.0,108740.0,0.77564082]
[1756528121307,0.92327922,108750.0,108740.0,0.77564082]
[1756528121806,0.08343922,108750.0,108740.0,0.77564082]
[1756528122008,0.92315922,108750.0,108740.0,0.77564082]
[1756528125516,0.92315922,108750.0,108740.0,1.12848142]
[1756528125710,0.92295922,108750.0,108740.0,1.12848142]
[1756528128206,1.27579493,108750.0,108740.0,1.12848142]
[1756528129511,1.27579493,108750.0,108740.0,0.42281]
[1756528129712,1.27579493,108750.0,108740.0,1.12848142]
[1756528129913,0.92295922,108750.0,108740.0,1.12848142]
[1756528130817,1.27579493,108750.0,108740.0,1.12848142]
[1756528131322,0.92295922,108750.0,108740.0,1.12848142]
[1756528131522,1.27583614,108750.0,108740.0,1.12848142]
[1756528131821,0.43631614,108750.0,108740.0,1.12848142]
[1756528132016,1.27599614,108750.0,108740.0,1.12848142]
[1756528132223,0.08348043,108750.0,108740.0,1.12848142]
[1756528132418,1.27591614,108750.0,108740.0,1.12848142]
[1756528132623,1.73671614,108750.0,108740.0,0.02538]
[1756528140234,1.73671614,108750.0,108740.0,0.04379721]
[1756528141423,0.03557,108740.0,108720.0,0.39631]
[1756528141631,0.41185571,108730.0,108720.0,0.77310571]
[1756528141827,1.25065571,108730.0,108720.0,0.77310571]
[1756528142139,1.71145571,108730.0,108720.0,0.41230571]
[1756528142542,1.7346508,108730.0,108720.0,0.41230571]
[1756528142842,1.35862,108730.0,108720.0,0.02696]
[1756528143034,1.67588571,108730.0,108710.0,0.03551]
[1756528143233,1.22305,108730.0,108720.0,0.38079571]
[1756528143438,1.57588571,108730.0,108720.0,0.02796]
[1756528143838,1.61145571,108730.0,108720.0,0.02796]
[1756528144242,1.61145571,108730.0,108720.0,0.02396]
[1756528144439,1.61145571,108730.0,108720.0,0.37679571]
[1756528144640,1.61145571,108730.0,108720.0,0.002]
[1756528144840,1.61145571,108730.0,108720.0,0.02596]
[1756528145447,1.61165459,108730.0,108720.0,0.02596]
[1756528147047,1.61165459,108730.0,108720.0,0.02996]
[1756528149048,1.25061459,108730.0,108720.0,0.06547]
[1756528149550,0.89758,108730.0,108720.0,0.06547]
[1756528149850,1.25061459,108730.0,108720.0,0.06547]
[1756528152653,0.05902,108730.0,108720.0,0.06547]
[1756528152850,1.25061459,108730.0,108720.0,0.06547]
[1756528154556,1.25061459,108730.0,108720.0,0.02996]
[1756528155757,1.25061459,108730.0,108720.0,0.06547]
[1756528156146,1.25061459,108730.0,108720.0,0.02996]
[1756528162155,1.25061459,108730.0,108720.0,0.006]
[1756528162460,1.25061459,108730.0,108720.0,0.02996]
[1756528162759,1.71141459,108730.0,108720.0,0.006]
[1756528162960,0.05902,108700.0,108690.0,0.43853287]
[1756528163158,0.89758,108700.0,108690.0,0.25521287]
[1756528163862,1.25061459,108700.0,108690.0,0.25521287]
[1756528164253,1.25061459,108700.0,108690.0,0.26021287]
[1756528164755,1.25061459,108700.0,108690.0,0.26621287]
[1756528164960,0.89758,108700.0,108690.0,0.26621287]
[1756528165960,0.0986453,108700.0,108690.0,0.26621287]
[1756528166266,1.36457596,108700.0,108690.0,0.26621287]
[1756528166458,1.29027989,108700.0,108690.0,0.26621287]
[1756528166654,0.9372453,108700.0,108690.0,0.26621287]
[1756528166859,0.9372453,108700.0,108690.0,0.61924746]
[1756528167456,1.29027989,108700.0,108690.0,0.26621287]
[1756528167662,1.29027989,108700.0,108690.0,0.011]
[1756528167858,1.65107989,108700.0,108690.0,0.011]
[1756528168058,1.16247989,108700.0,108690.0,0.011]
[1756528168367,2.00107989,108700.0,108690.0,0.011]
[1756528168865,1.18574011,108700.0,108690.0,0.011]
[1756528169066,2.02434011,108700.0,108690.0,0.011]
[1756528169860,2.02434011,108700.0,108690.0,0.012]
[1756528170360,2.02434011,108700.0,108690.0,0.007]
[1756528170666,1.09956481,108700.0,108670.0,0.39631]
[1756528170867,1.09956481,108700.0,108670.0,0.42027]
[1756528170868,0.00324,108680.0,108670.0,0.42027]
[1756528171064,0.84192,108680.0,108670.0,0.42027]
[1756528171268,0.81707459,108680.0,108650.0,0.03592]
[1756528171470,0.3608,108670.0,108660.0,0.05979]
[1756528171671,0.06152,108660.0,108650.0,0.61425255]
[1756528172074,0.9002,108660.0,108650.0,0.61425255]
[1756528172369,0.93953808,108660.0,108650.0,0.61425255]
[1756528173069,0.93953808,108660.0,108650.0,0.62025255]
[1756528173472,0.93653808,108660.0,108650.0,0.65617255]
[1756528174273,0.93653808,108660.0,108650.0,0.66017255]
[1756528174476,0.93717808,108660.0,108650.0,0.66017255]
[1756528175367,0.03933808,108660.0,108650.0,0.66017255]
[1756528175673,0.83928,108660.0,108650.0,0.66017255]
[1756528175867,0.03686,108670.0,108650.0,0.62425255]
[1756528176062,0.03686,108680.0,108660.0,1.09073918]
[1756528176268,0.06152,108680.0,108670.0,0.77362459]
[1756528176467,0.9008,108680.0,108670.0,0.77362459]
[1756528176672,0.9008,108680.0,108670.0,0.41282459]
[1756528177067,0.90084,108680.0,108670.0,0.41282459]
[1756528177668,0.93921929,108680.0,108670.0,0.41282459]
[1756528177875,0.93921929,108680.0,108670.0,0.41382459]
[1756528179275,0.09989929,108680.0,108670.0,0.41382459]
[1756528179474,0.93897929,108680.0,108670.0,0.41382459]
[1756528180375,0.93897929,108680.0,108670.0,0.77462459]
[1756528180574,0.06303929,108680.0,108670.0,0.77462459]
[1756528180769,1.74964,108690.0,108680.0,0.03592]
[1756528180770,0.06152,108690.0,108680.0,0.03592]
[1756528181069,0.9008,108690.0,108680.0,0.77362459]
[1756528181573,0.06152,108690.0,108680.0,0.77362459]
[1756528181874,0.9008,108690.0,108680.0,0.77362459]
[1756528182075,0.9018,108690.0,108680.0,0.77362459]
[1756528182876,0.06252,108690.0,108680.0,0.79215076]
[1756528183078,0.90176,108690.0,108680.0,0.79215076]
[1756528183280,0.93979072,108690.0,108680.0,0.79215076]
[1756528183478,0.10067072,108690.0,108680.0,0.79215076]
[1756528183684,0.90289072,108690.0,108680.0,0.79215076]
[1756528184177,0.93975072,108690.0,108680.0,0.79215076]
[1756528185875,0.93967072,108690.0,108680.0,0.79215076]
[1756528186781,0.03915072,108690.0,108680.0,1.04215076]
[1756528187082,0.03915072,108690.0,108680.0,1.39518535]
[1756528187083,0.001,108690.0,108680.0,1.39518535]
[1756528188875,0.001,108690.0,108680.0,2.23494535]
[1756528189175,0.001,108690.0,108680.0,1.48718245]
[1756528189473,0.001,108690.0,108680.0,2.32734245]
[1756528189674,0.08394394,108710.0,108680.0,2.32734245]
[1756528189869,0.06152,108710.0,108700.0,0.79214458]
[1756528190887,0.06152,108710.0,108700.0,0.43910999]
[1756528191081,0.06152,108710.0,108700.0,0.79214458]
[1756528191474,0.06152,108710.0,108700.0,1.15294458]
[1756528191674,0.07075632,108710.0,108700.0,1.15294458]
[1756528191875,0.10761632,108710.0,108700.0,1.15294458]
[1756528192479,0.11161632,108710.0,108700.0,1.15294458]
[1756528193486,0.05009632,108710.0,108700.0,1.15294458]
[1756528193886,0.08695632,108710.0,108700.0,1.15294458]
[1756528196087,0.05009632,108710.0,108700.0,1.15294458]
[1756528196282,0.004,108710.0,108700.0,1.15294458]